[Event "Live Chess"]
[Site "Chess.com"]
[Date "2023.05.20"]
[Round "-"]
[White "thrithik"]
[Black "JackRudd"]
[Result "0-1"]
[WhiteElo "483"]
[BlackElo "2424"]
[TimeControl "300"]
[EndTime "9:36:39 PDT"]
[Termination "JackRudd won by checkmate"]

1. a3 {[%clk 0:04:57.9]} 1... Nf6 {[%clk 0:04:56.6]} 2. Nc3 {[%clk 0:04:57.6]}
2... d5 {[%clk 0:04:54.5]} 3. Nf3 {[%clk 0:04:53.2]} 3... d4 {[%clk 0:04:52.5]}
4. Ne5 {[%clk 0:04:51.9]} 4... dxc3 {[%clk 0:04:51.1]} 5. dxc3 {[%clk
0:04:45.6]} 5... Qxd1+ {[%clk 0:04:49.7]} 6. Kxd1 {[%clk 0:04:44.6]} 6... Nbd7
{[%clk 0:04:48.8]} 7. Nxd7 {[%clk 0:04:34.9]} 7... Bxd7 {[%clk 0:04:47.6]} 8.
Bd2 {[%clk 0:04:34]} 8... O-O-O {[%clk 0:04:46.4]} 9. Be3 {[%clk 0:04:32.2]}
9... Ng4 {[%clk 0:04:43.6]} 10. Bxa7 {[%clk 0:04:31.4]} 10... b6 {[%clk
0:04:42.4]} 11. a4 {[%clk 0:04:26]} 11... Kb7 {[%clk 0:04:41.2]} 12. a5 {[%clk
0:04:18.8]} 12... Kxa7 {[%clk 0:04:39.6]} 13. axb6+ {[%clk 0:04:17.5]} 13...
Kxb6 {[%clk 0:04:38.9]} 14. Ra4 {[%clk 0:04:12.5]} 14... Bxa4+ {[%clk 0:04:37]}
15. Kc1 {[%clk 0:04:06]} 15... Nxf2 {[%clk 0:04:35.5]} 16. Rg1 {[%clk
0:04:02.2]} 16... Rd1# {[%clk 0:04:33.8]} 0-1

[Event "Live Chess"]
[Site "Chess.com"]
[Date "2023.05.20"]
[Round "-"]
[White "gmnorfolk"]
[Black "defenderalist"]
[Result "1-0"]
[WhiteElo "2169"]
[BlackElo "1591"]
[TimeControl "300"]
[EndTime "9:36:42 PDT"]
[Termination "gmnorfolk won by resignation"]

1. d4 {[%clk 0:04:57.3]} 1... e6 {[%clk 0:04:58.8]} 2. c4 {[%clk 0:04:55.8]}
2... d5 {[%clk 0:04:58]} 3. Nf3 {[%clk 0:04:53.3]} 3... Nf6 {[%clk 0:04:55.8]}
4. g3 {[%clk 0:04:52.2]} 4... dxc4 {[%clk 0:04:54.8]} 5. Bg2 {[%clk 0:04:51.4]}
5... Bb4+ {[%clk 0:04:52.4]} 6. Bd2 {[%clk 0:04:46.6]} 6... Bxd2+ {[%clk
0:04:51.5]} 7. Nbxd2 {[%clk 0:04:43.9]} 7... b5 {[%clk 0:04:48.3]} 8. a4 {[%clk
0:04:38.4]} 8... Bb7 {[%clk 0:04:47]} 9. axb5 {[%clk 0:04:34.5]} 9... O-O {[%clk
0:04:44.9]} 10. Nxc4 {[%clk 0:04:27.2]} 10... c5 {[%clk 0:04:42.1]} 11. dxc5
{[%clk 0:04:22.2]} 1-0

[Event "Live Chess"]
[Site "Chess.com"]
[Date "2023.05.20"]
[Round "-"]
[White "JuperLuper"]
[Black "SavagePawn7"]
[Result "1-0"]
[WhiteElo "1188"]
[BlackElo "790"]
[TimeControl "300"]
[EndTime "9:36:43 PDT"]
[Termination "JuperLuper won by resignation"]

1. c4 {[%clk 0:04:56.8]} 1... e5 {[%clk 0:04:54.9]} 2. Nc3 {[%clk 0:04:55.3]}
2... Nf6 {[%clk 0:04:49.5]} 3. e3 {[%clk 0:04:53.9]} 3... Nc6 {[%clk 0:04:47.6]}
4. d4 {[%clk 0:04:52.6]} 4... Bb4 {[%clk 0:04:42.3]} 5. d5 {[%clk 0:04:49.3]}
5... Bxc3+ {[%clk 0:04:31.3]} 6. bxc3 {[%clk 0:04:46.7]} 6... Ne7 {[%clk
0:04:28.7]} 7. Bb2 {[%clk 0:04:45]} 7... c6 {[%clk 0:04:22.5]} 8. d6 {[%clk
0:04:40.6]} 8... Nf5 {[%clk 0:04:18.7]} 9. Nf3 {[%clk 0:04:34.7]} 9... O-O
{[%clk 0:04:12.5]} 10. Bd3 {[%clk 0:03:07]} 10... Ne8 {[%clk 0:04:12.4]} 11.
Bxf5 {[%clk 0:03:05.1]} 11... Nxd6 {[%clk 0:04:01.1]} 12. Qxd6 {[%clk
0:03:02.2]} 1-0

[Event "Live Chess"]
[Site "Chess.com"]
[Date "2023.05.20"]
[Round "-"]
[White "tuppyglossop"]
[Black "MaximKhimchenko"]
[Result "1-0"]
[WhiteElo "1609"]
[BlackElo "1375"]
[TimeControl "300"]
[EndTime "9:36:50 PDT"]
[Termination "tuppyglossop won by resignation"]

1. e4 {[%clk 0:04:51.6]} 1... e5 {[%clk 0:04:59.9]} 2. Nf3 {[%clk 0:04:48.2]}
2... Nc6 {[%clk 0:04:56.8]} 3. Bb5 {[%clk 0:04:46.5]} 3... Bc5 {[%clk
0:04:55.4]} 4. O-O {[%clk 0:04:42.1]} 4... Nf6 {[%clk 0:04:30.5]} 5. d3 {[%clk
0:04:39.9]} 5... d6 {[%clk 0:04:25.7]} 6. c3 {[%clk 0:04:38.3]} 6... Bd7 {[%clk
0:04:20.9]} 7. Bg5 {[%clk 0:04:35.6]} 7... h6 {[%clk 0:04:17.3]} 8. Bh4 {[%clk
0:04:34.4]} 8... g5 {[%clk 0:04:15.5]} 9. Bg3 {[%clk 0:04:33.4]} 9... Nh5 {[%clk
0:04:06.5]} 10. Nbd2 {[%clk 0:04:29.3]} 10... Nxg3 {[%clk 0:04:04.9]} 11. hxg3
{[%clk 0:04:29.2]} 11... h5 {[%clk 0:04:03]} 12. Nb3 {[%clk 0:04:25.3]} 12...
Bb6 {[%clk 0:04:00.2]} 13. Qd2 {[%clk 0:04:23.5]} 13... Rg8 {[%clk 0:03:52.1]}
14. Rae1 {[%clk 0:04:15.9]} 14... h4 {[%clk 0:03:49.4]} 15. gxh4 {[%clk
0:04:02.7]} 15... gxh4 {[%clk 0:03:49.3]} 16. Qh6 {[%clk 0:03:58.1]} 16... Bg4
{[%clk 0:03:33.4]} 17. Nxh4 {[%clk 0:03:34.6]} 17... Qd7 {[%clk 0:03:27.7]} 18.
d4 {[%clk 0:03:11.1]} 18... a6 {[%clk 0:03:21.6]} 19. Ba4 {[%clk 0:03:02.9]} 1-0

[Event "Live Chess"]
[Site "Chess.com"]
[Date "2023.05.20"]
[Round "-"]
[White "LodeshChess"]
[Black "Jeffaroow"]
[Result "1-0"]
[WhiteElo "879"]
[BlackElo "454"]
[TimeControl "300"]
[EndTime "9:36:57 PDT"]
[Termination "LodeshChess won by resignation"]

1. e4 {[%clk 0:04:59.6]} 1... e5 {[%clk 0:04:58.1]} 2. Nf3 {[%clk 0:04:58.4]}
2... Nc6 {[%clk 0:04:56.8]} 3. c3 {[%clk 0:04:58]} 3... Nf6 {[%clk 0:04:54.8]}
4. d4 {[%clk 0:04:56.8]} 4... exd4 {[%clk 0:04:53.7]} 5. e5 {[%clk 0:04:55.7]}
5... Nd5 {[%clk 0:04:48.9]} 6. Qb3 {[%clk 0:04:54.9]} 6... Nxe5 {[%clk
0:04:34.3]} 7. Nxe5 {[%clk 0:04:49.6]} 7... Qe7 {[%clk 0:04:32.6]} 8. Qxd5
{[%clk 0:04:44.5]} 8... c6 {[%clk 0:04:31.1]} 9. Qxd4 {[%clk 0:04:37.7]} 9... c5
{[%clk 0:04:28.3]} 10. Qe3 {[%clk 0:04:26.2]} 10... d6 {[%clk 0:04:22.3]} 11.
Nc4 {[%clk 0:04:23.6]} 11... Qxe3+ {[%clk 0:04:19.5]} 12. Nxe3 {[%clk
0:04:22.7]} 1-0

[Event "Live Chess"]
[Site "Chess.com"]
[Date "2023.05.20"]
[Round "-"]
[White "Bot_Boy"]
[Black "PaulHumphreys"]
[Result "0-1"]
[WhiteElo "329"]
[BlackElo "1364"]
[TimeControl "300"]
[EndTime "9:36:58 PDT"]
[Termination "PaulHumphreys won on time"]

1. g4 {[%clk 0:04:55.5]} 1... e5 {[%clk 0:04:54]} 2. h4 {[%clk 0:04:50.7]} 2...
Bc5 {[%clk 0:04:51]} 3. e3 {[%clk 0:04:39.5]} 3... d6 {[%clk 0:04:44.1]} 4. Nc3
{[%clk 0:04:36]} 4... Nf6 {[%clk 0:04:40.7]} 5. Be2 {[%clk 0:04:20]} 5... Nc6
{[%clk 0:04:28.8]} 6. Bb5 {[%clk 0:04:08]} 6... a6 {[%clk 0:04:21.5]} 7. Bc4
{[%clk 0:03:51.1]} 7... Nxg4 {[%clk 0:04:08.9]} 8. Ne4 {[%clk 0:03:23.9]} 8...
Ba7 {[%clk 0:03:56.1]} 9. Ng3 {[%clk 0:03:09]} 9... Qf6 {[%clk 0:03:48.6]} 10.
f3 {[%clk 0:02:46.4]} 10... Nh6 {[%clk 0:03:32.1]} 11. Nh5 {[%clk 0:02:36]}
11... Qg6 {[%clk 0:03:12.5]} 12. Nxg7+ {[%clk 0:02:15]} 12... Qxg7 {[%clk
0:03:02.7]} 13. d4 {[%clk 0:01:59.4]} 13... exd4 {[%clk 0:02:50]} 14. e4 {[%clk
0:01:42.4]} 14... Qg2 {[%clk 0:02:33.5]} 15. Bxh6 {[%clk 0:01:23.1]} 15... Qxh1
{[%clk 0:02:25]} 16. Kd2 {[%clk 0:00:46.2]} 16... Qxh4 {[%clk 0:01:53.7]} 17.
Bg7 {[%clk 0:00:08.8]} 17... Rg8 {[%clk 0:01:47.3]} 18. Kd3 {[%clk 0:00:07.3]}
18... Rxg7 {[%clk 0:01:39.7]} 19. Qf1 {[%clk 0:00:01.9]} 19... Ne5+ {[%clk
0:01:36.7]} 0-1

[Event "Live Chess"]
[Site "Chess.com"]
[Date "2023.05.20"]
[Round "-"]
[White "KuriyamaMiraiUA"]
[Black "Ferrarifan27"]
[Result "0-1"]
[WhiteElo "622"]
[BlackElo "2108"]
[TimeControl "300"]
[EndTime "9:37:03 PDT"]
[Termination "Ferrarifan27 won by checkmate"]

1. d4 {[%clk 0:04:58.9]} 1... Nf6 {[%clk 0:04:57.5]} 2. c4 {[%clk 0:04:57.4]}
2... e6 {[%clk 0:04:56.1]} 3. Nc3 {[%clk 0:04:56.4]} 3... Bb4 {[%clk 0:04:54.7]}
4. e3 {[%clk 0:04:51.5]} 4... c5 {[%clk 0:04:50.6]} 5. Bd3 {[%clk 0:04:42]} 5...
O-O {[%clk 0:04:47.2]} 6. Nf3 {[%clk 0:04:40.7]} 6... Nc6 {[%clk 0:04:43]} 7.
O-O {[%clk 0:04:39.1]} 7... d6 {[%clk 0:04:42.2]} 8. Be4 {[%clk 0:04:31.1]} 8...
Bxc3 {[%clk 0:04:39]} 9. bxc3 {[%clk 0:04:29.7]} 9... Nxe4 {[%clk 0:04:37.6]}
10. d5 {[%clk 0:04:23.3]} 10... Ne7 {[%clk 0:04:29.8]} 11. Bb2 {[%clk
0:04:15.4]} 11... e5 {[%clk 0:04:28.3]} 12. Nd2 {[%clk 0:04:08.4]} 12... Nxd2
{[%clk 0:04:26.1]} 13. Qxd2 {[%clk 0:04:07.7]} 13... f5 {[%clk 0:04:24.5]} 14.
a4 {[%clk 0:04:02.7]} 14... b6 {[%clk 0:04:22.5]} 15. f4 {[%clk 0:03:50.6]}
15... e4 {[%clk 0:04:14.8]} 16. Qe2 {[%clk 0:03:44]} 16... Ba6 {[%clk
0:04:12.9]} 17. g4 {[%clk 0:03:40.4]} 17... fxg4 {[%clk 0:04:10.6]} 18. Qxg4
{[%clk 0:03:34.6]} 18... Nf5 {[%clk 0:04:05.5]} 19. Qg2 {[%clk 0:03:12.7]} 19...
Nxe3 {[%clk 0:04:02.5]} 20. Rf2 {[%clk 0:03:07.7]} 20... Nxg2 {[%clk 0:04:01]}
21. Kxg2 {[%clk 0:03:06.6]} 21... Bxc4 {[%clk 0:03:59.3]} 22. f5 {[%clk
0:03:04.8]} 22... e3 {[%clk 0:03:57.7]} 23. Rf4 {[%clk 0:03:02.1]} 23... Bxd5+
{[%clk 0:03:56.4]} 24. Kf1 {[%clk 0:02:53.1]} 24... c4 {[%clk 0:03:54.5]} 25.
Rd1 {[%clk 0:02:46.1]} 25... Qg5 {[%clk 0:03:51.9]} 26. Rdd4 {[%clk 0:02:37.5]}
26... Qg2+ {[%clk 0:03:48.1]} 27. Ke1 {[%clk 0:02:34.4]} 27... Bf3 {[%clk
0:03:39.2]} 28. Rd2 {[%clk 0:02:07]} 28... Qxd2+ {[%clk 0:03:36.1]} 29. Kf1
{[%clk 0:02:05.3]} 29... Qf2# {[%clk 0:03:34.8]} 0-1

[Event "Live Chess"]
[Site "Chess.com"]
[Date "2023.05.20"]
[Round "-"]
[White "Sergio2StepsAheado"]
[Black "Ayush_prahlad_Gupta"]
[Result "0-1"]
[WhiteElo "970"]
[BlackElo "1800"]
[TimeControl "300"]
[EndTime "9:37:07 PDT"]
[Termination "Ayush_prahlad_Gupta won by checkmate"]

1. e4 {[%clk 0:04:54.9]} 1... e5 {[%clk 0:04:59.9]} 2. Nf3 {[%clk 0:04:54.2]}
2... Nc6 {[%clk 0:04:59.5]} 3. Nc3 {[%clk 0:04:53.2]} 3... Bc5 {[%clk 0:04:59]}
4. Bc4 {[%clk 0:04:50.2]} 4... d6 {[%clk 0:04:58.4]} 5. d3 {[%clk 0:04:46.1]}
5... Bg4 {[%clk 0:04:57.5]} 6. h3 {[%clk 0:04:44.6]} 6... Bh5 {[%clk 0:04:55.4]}
7. Be3 {[%clk 0:04:27.4]} 7... Nd4 {[%clk 0:04:48.3]} 8. Bxd4 {[%clk 0:04:23.6]}
8... exd4 {[%clk 0:04:47.9]} 9. Nd5 {[%clk 0:04:21.5]} 9... c6 {[%clk 0:04:47]}
10. Nf4 {[%clk 0:04:17.4]} 10... Bxf3 {[%clk 0:04:45.8]} 11. Qxf3 {[%clk
0:04:16]} 11... Bb4+ {[%clk 0:04:42.5]} 12. Ke2 {[%clk 0:03:56.2]} 12... Nf6
{[%clk 0:04:37.2]} 13. Rac1 {[%clk 0:03:47.7]} 13... O-O {[%clk 0:04:35.5]} 14.
c3 {[%clk 0:03:46.4]} 14... dxc3 {[%clk 0:04:35.2]} 15. bxc3 {[%clk 0:03:45.4]}
15... Ba5 {[%clk 0:04:34.4]} 16. Rhe1 {[%clk 0:03:24.1]} 16... d5 {[%clk
0:04:24.3]} 17. exd5 {[%clk 0:03:21.7]} 17... cxd5 {[%clk 0:04:24.2]} 18. Nxd5
{[%clk 0:03:13.9]} 18... Nxd5 {[%clk 0:04:21.4]} 19. Bxd5 {[%clk 0:03:12.7]}
19... Qc7 {[%clk 0:04:05.9]} 20. Rc2 {[%clk 0:02:34.7]} 20... Rae8+ {[%clk
0:04:00.5]} 21. Kd1 {[%clk 0:02:26.7]} 21... Rxe1+ {[%clk 0:03:29.9]} 22. Kxe1
{[%clk 0:02:25.3]} 22... Bxc3+ {[%clk 0:03:28.9]} 23. Kd1 {[%clk 0:02:23.8]}
23... Qa5 {[%clk 0:03:27.6]} 24. Bb3 {[%clk 0:02:09.9]} 24... Qe5 {[%clk
0:03:25.4]} 25. Re2 {[%clk 0:02:02.2]} 25... Qg5 {[%clk 0:03:11.6]} 26. Bxf7+
{[%clk 0:01:47.4]} 26... Kh8 {[%clk 0:03:01.4]} 27. Rc2 {[%clk 0:01:25.8]} 27...
Qe5 {[%clk 0:02:50]} 28. Re2 {[%clk 0:01:09.1]} 28... Qb5 {[%clk 0:02:35.9]} 29.
Bc4 {[%clk 0:00:43.3]} 29... Qb1# {[%clk 0:02:29.4]} 0-1

[Event "Live Chess"]
[Site "Chess.com"]
[Date "2023.05.20"]
[Round "-"]
[White "lamteama1"]
[Black "Fayn02"]
[Result "1-0"]
[WhiteElo "977"]
[BlackElo "1009"]
[TimeControl "300"]
[EndTime "9:37:07 PDT"]
[Termination "lamteama1 won by resignation"]

1. e4 {[%clk 0:04:57.8]} 1... c6 {[%clk 0:04:58.5]} 2. Nc3 {[%clk 0:04:09.1]}
2... d5 {[%clk 0:04:57.1]} 3. d3 {[%clk 0:04:02.8]} 3... Qb6 {[%clk 0:04:38.4]}
4. d4 {[%clk 0:03:56.9]} 4... g6 {[%clk 0:04:31.4]} 5. Nf3 {[%clk 0:03:51.2]}
5... Nh6 {[%clk 0:04:27.7]} 6. Bd3 {[%clk 0:03:44.4]} 6... Qc7 {[%clk
0:04:16.6]} 7. exd5 {[%clk 0:03:38.3]} 7... cxd5 {[%clk 0:04:15.3]} 8. Nxd5
{[%clk 0:03:32.8]} 8... Qd6 {[%clk 0:04:12.3]} 9. c4 {[%clk 0:03:26.8]} 9... Bg4
{[%clk 0:04:02]} 10. Bf4 {[%clk 0:03:21.4]} 10... Qe6+ {[%clk 0:03:51.8]} 11.
Be5 {[%clk 0:03:13]} 11... f6 {[%clk 0:03:46.1]} 12. Nc7+ {[%clk 0:03:06.4]} 1-0

[Event "Live Chess"]
[Site "Chess.com"]
[Date "2023.05.20"]
[Round "-"]
[White "JashonTOGM"]
[Black "MarkLim1"]
[Result "0-1"]
[WhiteElo "1057"]
[BlackElo "1602"]
[TimeControl "300"]
[EndTime "9:37:28 PDT"]
[Termination "MarkLim1 won by resignation"]

1. d4 {[%clk 0:04:58]} 1... Nf6 {[%clk 0:04:58.8]} 2. Bf4 {[%clk 0:04:55.4]}
2... c5 {[%clk 0:04:57.7]} 3. c3 {[%clk 0:04:51.3]} 3... Qb6 {[%clk 0:04:54.3]}
4. Nf3 {[%clk 0:04:50.7]} 4... Qxb2 {[%clk 0:04:52.1]} 5. Nbd2 {[%clk
0:04:46.6]} 5... Qxc3 {[%clk 0:04:48.5]} 6. Rc1 {[%clk 0:04:44.4]} 6... Qa5
{[%clk 0:04:46.7]} 7. e3 {[%clk 0:04:37.5]} 7... d6 {[%clk 0:04:37.2]} 8. Bd3
{[%clk 0:04:32.3]} 8... Nc6 {[%clk 0:04:34.9]} 9. O-O {[%clk 0:04:23]} 9... cxd4
{[%clk 0:04:33.6]} 10. exd4 {[%clk 0:04:21.8]} 10... Bg4 {[%clk 0:04:30.4]} 11.
Be4 {[%clk 0:04:14.1]} 11... Bxf3 {[%clk 0:04:18.9]} 12. Qxf3 {[%clk 0:04:09.5]}
12... Nxd4 {[%clk 0:04:17]} 13. Qd3 {[%clk 0:03:58.5]} 13... e5 {[%clk
0:04:02.4]} 14. Bg5 {[%clk 0:03:45.3]} 14... Be7 {[%clk 0:03:59.6]} 15. Bxf6
{[%clk 0:03:43.3]} 15... Bxf6 {[%clk 0:03:53.8]} 16. Bxb7 {[%clk 0:03:36.8]}
16... Rb8 {[%clk 0:03:48]} 17. Bc6+ {[%clk 0:03:33.9]} 17... Nxc6 {[%clk
0:03:45.9]} 18. Rxc6 {[%clk 0:03:31.5]} 18... O-O {[%clk 0:03:43.2]} 19. Nf3
{[%clk 0:03:24.7]} 19... Qxa2 {[%clk 0:03:37.2]} 20. Rxd6 {[%clk 0:03:21.2]}
20... h6 {[%clk 0:03:26.8]} 21. Re1 {[%clk 0:03:01.6]} 21... Rb3 {[%clk
0:03:21.6]} 22. Qd1 {[%clk 0:02:45.4]} 22... Re8 {[%clk 0:03:13.5]} 23. Nd2
{[%clk 0:02:23.7]} 23... Rb2 {[%clk 0:03:02.8]} 24. Rxf6 {[%clk 0:02:06.6]}
24... gxf6 {[%clk 0:02:23]} 25. Qg4+ {[%clk 0:02:03.2]} 25... Kh7 {[%clk
0:02:21.1]} 26. Qf5+ {[%clk 0:01:55.1]} 26... Kh8 {[%clk 0:02:16.3]} 27. Qxf6+
{[%clk 0:01:53.2]} 27... Kh7 {[%clk 0:02:15.3]} 28. Nf3 {[%clk 0:01:38]} 28...
Rxf2 {[%clk 0:02:10]} 29. Nh4 {[%clk 0:01:13.4]} 29... Rxf6 {[%clk 0:02:04]} 0-1

[Event "Live Chess"]
[Site "Chess.com"]
[Date "2023.05.20"]
[Round "-"]
[White "KGreenGator"]
[Black "wadsy27"]
[Result "0-1"]
[WhiteElo "1767"]
[BlackElo "2587"]
[TimeControl "300"]
[EndTime "9:37:34 PDT"]
[Termination "wadsy27 won by checkmate"]

1. c4 {[%clk 0:04:58.9]} 1... e5 {[%clk 0:04:58.2]} 2. Nc3 {[%clk 0:04:57.5]}
2... Nf6 {[%clk 0:04:55.1]} 3. e4 {[%clk 0:04:55]} 3... Bc5 {[%clk 0:04:53.2]}
4. h3 {[%clk 0:04:52.9]} 4... d6 {[%clk 0:04:51.6]} 5. Nf3 {[%clk 0:04:51.7]}
5... a6 {[%clk 0:04:50.2]} 6. a3 {[%clk 0:04:50.1]} 6... Nc6 {[%clk 0:04:48.6]}
7. b4 {[%clk 0:04:40.6]} 7... Ba7 {[%clk 0:04:47.6]} 8. Bb2 {[%clk 0:04:38.9]}
8... O-O {[%clk 0:04:41.5]} 9. Bd3 {[%clk 0:04:37.2]} 9... h6 {[%clk 0:04:39.8]}
10. Bc2 {[%clk 0:04:36.3]} 10... Nd4 {[%clk 0:04:32.9]} 11. Nd5 {[%clk
0:04:29.5]} 11... Nxd5 {[%clk 0:04:11.3]} 12. cxd5 {[%clk 0:04:26.9]} 12...
Nxf3+ {[%clk 0:04:07.2]} 13. Qxf3 {[%clk 0:04:25.2]} 13... g6 {[%clk 0:03:25.4]}
14. d3 {[%clk 0:04:22.8]} 14... f5 {[%clk 0:03:23.7]} 15. Bc1 {[%clk 0:04:17.2]}
15... fxe4 {[%clk 0:03:18.8]} 16. Qxe4 {[%clk 0:04:12.6]} 16... Bxf2+ {[%clk
0:03:17.3]} 17. Ke2 {[%clk 0:04:07.5]} 17... Bf5 {[%clk 0:03:15.6]} 18. Qc4
{[%clk 0:04:03.4]} 18... Bd4 {[%clk 0:03:13.2]} 19. Bxh6 {[%clk 0:04:00.6]}
19... b5 {[%clk 0:03:04.7]} 20. Qb3 {[%clk 0:03:56.1]} 20... Qh4 {[%clk
0:02:54.9]} 21. Bxf8 {[%clk 0:03:34.8]} 21... Qf2+ {[%clk 0:02:52.6]} 22. Kd1
{[%clk 0:03:34.1]} 22... Rxf8 {[%clk 0:02:51.7]} 23. Rb1 {[%clk 0:03:27.6]}
23... Qxg2 {[%clk 0:02:46.1]} 24. Re1 {[%clk 0:03:23.7]} 24... Bxh3 {[%clk
0:02:41.1]} 25. Kc1 {[%clk 0:03:21.3]} 25... Qg5+ {[%clk 0:02:38.9]} 26. Kd1
{[%clk 0:03:18.7]} 26... Bg4+ {[%clk 0:02:38]} 27. Re2 {[%clk 0:03:17.4]} 27...
Rf1# {[%clk 0:02:37.3]} 0-1

[Event "Live Chess"]
[Site "Chess.com"]
[Date "2023.05.20"]
[Round "-"]
[White "martinsmartin63"]
[Black "LiamBellwood"]
[Result "0-1"]
[WhiteElo "760"]
[BlackElo "2111"]
[TimeControl "300"]
[EndTime "9:37:37 PDT"]
[Termination "LiamBellwood won by checkmate"]

1. e4 {[%clk 0:04:56.9]} 1... e6 {[%clk 0:04:59.9]} 2. Nf3 {[%clk 0:04:53.8]}
2... d5 {[%clk 0:04:59.8]} 3. d4 {[%clk 0:04:48.4]} 3... dxe4 {[%clk 0:04:58.5]}
4. Ne5 {[%clk 0:04:45.8]} 4... c5 {[%clk 0:04:54.9]} 5. c3 {[%clk 0:04:41.1]}
5... cxd4 {[%clk 0:04:50.7]} 6. cxd4 {[%clk 0:04:38.5]} 6... Nf6 {[%clk
0:04:45.4]} 7. Nc3 {[%clk 0:04:34.1]} 7... Bb4 {[%clk 0:04:44.1]} 8. Bd2 {[%clk
0:04:30]} 8... Qxd4 {[%clk 0:04:27.4]} 9. Bb5+ {[%clk 0:04:22.1]} 9... Bd7
{[%clk 0:04:17.7]} 10. Nxd7 {[%clk 0:04:19.1]} 10... Nbxd7 {[%clk 0:04:17.6]}
11. O-O {[%clk 0:04:09.3]} 11... Bxc3 {[%clk 0:04:13.1]} 12. Bxc3 {[%clk
0:04:05.8]} 12... Qxd1 {[%clk 0:04:12.2]} 13. Rfxd1 {[%clk 0:04:01.7]} 13...
O-O-O {[%clk 0:03:57.4]} 14. Bxf6 {[%clk 0:03:56.3]} 14... Nxf6 {[%clk
0:03:55.1]} 15. Rxd8+ {[%clk 0:03:52.2]} 15... Rxd8 {[%clk 0:03:55]} 16. Be2
{[%clk 0:03:44.7]} 16... Rd2 {[%clk 0:03:53.8]} 17. Rd1 {[%clk 0:03:36.4]} 17...
Rxe2 {[%clk 0:03:49.6]} 18. Rd6 {[%clk 0:03:31]} 18... Re1# {[%clk 0:03:48.9]}
0-1

[Event "Live Chess"]
[Site "Chess.com"]
[Date "2023.05.20"]
[Round "-"]
[White "ickabod1100"]
[Black "PureMellowPlan"]
[Result "1-0"]
[WhiteElo "931"]
[BlackElo "604"]
[TimeControl "300"]
[EndTime "9:37:38 PDT"]
[Termination "ickabod1100 won by resignation"]

1. e4 {[%clk 0:04:58.7]} 1... e5 {[%clk 0:04:58.2]} 2. Nf3 {[%clk 0:04:57.3]}
2... Nc6 {[%clk 0:04:46.2]} 3. d4 {[%clk 0:04:54.8]} 3... exd4 {[%clk 0:04:44]}
4. Nxd4 {[%clk 0:04:52]} 4... Nxd4 {[%clk 0:04:43]} 5. Qxd4 {[%clk 0:04:50.2]}
5... Nf6 {[%clk 0:04:41.6]} 6. Bg5 {[%clk 0:04:47.8]} 6... Be7 {[%clk
0:04:38.9]} 7. e5 {[%clk 0:04:45.2]} 7... Ng8 {[%clk 0:04:33.7]} 8. Bxe7 {[%clk
0:04:43]} 8... Qxe7 {[%clk 0:04:32.3]} 9. Nc3 {[%clk 0:04:36.1]} 9... f6 {[%clk
0:04:29.7]} 10. Qe4 {[%clk 0:04:28.6]} 10... Qxe5 {[%clk 0:04:26]} 11. Qxe5+
{[%clk 0:04:26.8]} 11... fxe5 {[%clk 0:04:25]} 12. Nd5 {[%clk 0:04:24.9]} 12...
c5 {[%clk 0:04:22.6]} 13. Nc7+ {[%clk 0:04:23.4]} 13... Kd8 {[%clk 0:04:20.8]}
14. Nxa8 {[%clk 0:04:22.7]} 14... d5 {[%clk 0:04:16.9]} 15. g3 {[%clk
0:04:21.2]} 15... Bf5 {[%clk 0:04:14.8]} 16. O-O-O {[%clk 0:04:17.8]} 16... Kc8
{[%clk 0:04:14]} 17. Rxd5 {[%clk 0:04:14.3]} 17... Kb8 {[%clk 0:04:13.1]} 18.
Rd8+ {[%clk 0:04:12.2]} 1-0

[Event "Live Chess"]
[Site "Chess.com"]
[Date "2023.05.20"]
[Round "-"]
[White "Olisingapore"]
[Black "Vedant-1411"]
[Result "1-0"]
[WhiteElo "1950"]
[BlackElo "871"]
[TimeControl "300"]
[EndTime "9:37:41 PDT"]
[Termination "Olisingapore won by checkmate"]

1. d4 {[%clk 0:04:58.2]} 1... d5 {[%clk 0:04:54.4]} 2. c4 {[%clk 0:04:57.6]}
2... dxc4 {[%clk 0:04:22.4]} 3. Nf3 {[%clk 0:04:56.1]} 3... Be6 {[%clk
0:04:17.2]} 4. e3 {[%clk 0:04:54.4]} 4... Nc6 {[%clk 0:04:13.8]} 5. Nc3 {[%clk
0:04:52.5]} 5... a6 {[%clk 0:04:07.5]} 6. d5 {[%clk 0:04:45.8]} 6... b5 {[%clk
0:04:07.4]} 7. dxe6 {[%clk 0:04:43]} 7... fxe6 {[%clk 0:04:06.3]} 8. Qxd8+
{[%clk 0:04:38.3]} 8... Rxd8 {[%clk 0:04:03.7]} 9. b3 {[%clk 0:04:35]} 9... b4
{[%clk 0:04:02.1]} 10. Na4 {[%clk 0:04:04.6]} 10... c3 {[%clk 0:03:57.8]} 11.
Nc5 {[%clk 0:04:03.8]} 11... c2 {[%clk 0:03:54.5]} 12. Bb2 {[%clk 0:04:00.2]}
12... Nf6 {[%clk 0:03:38.2]} 13. Rc1 {[%clk 0:03:52.4]} 13... Rd1+ {[%clk
0:03:11.8]} 14. Rxd1 {[%clk 0:03:50.3]} 14... cxd1=Q+ {[%clk 0:03:10.6]} 15.
Kxd1 {[%clk 0:03:50.2]} 15... e5 {[%clk 0:03:07.5]} 16. Bxa6 {[%clk 0:03:47.9]}
16... e4 {[%clk 0:03:04.1]} 17. Ng5 {[%clk 0:03:37.5]} 17... h6 {[%clk
0:03:01.3]} 18. Nge6 {[%clk 0:03:32.7]} 18... Ng4 {[%clk 0:02:55.3]} 19. Ke2
{[%clk 0:03:30.5]} 19... Nb8 {[%clk 0:02:40.6]} 20. Bb5+ {[%clk 0:03:26.6]}
20... Kf7 {[%clk 0:02:34.8]} 21. Bc4 {[%clk 0:03:18.4]} 21... Nc6 {[%clk
0:02:24.2]} 22. Nd8+ {[%clk 0:03:13.6]} 22... Ke8 {[%clk 0:02:03.8]} 23. Nxc6
{[%clk 0:03:09.3]} 23... e5 {[%clk 0:01:54.7]} 24. Rd1 {[%clk 0:03:06.9]} 24...
Rh7 {[%clk 0:01:42.2]} 25. Rd8# {[%clk 0:03:05.1]} 1-0